Cogmind - Beta 12 X1 @@@ ROGUE MODE // 2022.08.16 @ 16:34:30 Player: Momo Result: Destroyed by Y-54 Guardian with Flak Gun Performance ------------- Evolutions (3) 1500 Regions Visited (6) 1200 Robots Destroyed (31) 155 Value Destroyed (816) 816 Prototype IDs (0) 0 Alien Tech Used (0) 0 Bonus (188) 188 TOTAL SCORE: 3859 Bonus ------- Follower Combat Kills 340 Friendly Fire -152 Cogmind --------- Core Integrity 0/700 Matter 230/300 Energy 24/100 System Corruption 1% Temperature Cool (6) Movement Core (50) Location -7/Factory Parts ------- > --- POWER (1) -------- (None) > --- PROPULSION (4) --- (None) > --- UTILITY (4) ------ Improved Melee Analysis Suite > --- WEAPON (4) ------- (None) > --- INVENTORY (5) ---- High-capacity Matter Pod (200) Improved Signal Interpreter Microactuators Peak State ------------ > --- POWER ------------ (None) > --- PROPULSION ------- Aluminum Leg Carbon-fiber Leg Carbon-fiber Leg Airjet > --- UTILITY ---------- Medium Storage Unit Improved Melee Analysis Suite Microactuators Reaction Control System > --- WEAPON ----------- Powered Hammer Makeshift Axe Makeshift Spear Makeshift Spear > --- INVENTORY -------- High-capacity Matter Pod Weight Redist. System Improved Signal Interpreter Improved Terrain Scanner Salvage Targeting Computer Improved Targeting Computer Pulse Rifle Pulse Rifle Makeshift Laser Improved Grenade Launcher [Rating: 40] Favorites ----------- Power Ion Engine Engine Ion Engine Propulsion Improved Aluminum Leg Treads Light Treads Leg Improved Aluminum Leg Wheel Compact Wheel Hover Unit Airjet Utility Disposable Heat Sink Device Disposable Heat Sink Storage Large Storage Unit Processor Improved Melee Analysis Suite Protection Medium Armor Plating Weapon Shotgun Energy Gun Pulse Rifle Ballistic Gun Shotgun Launcher Improved Grenade Launcher Impact Weapon Powered Hammer Slashing Weapon Makeshift Axe Piercing Weapon Makeshift Spear Build | -11 -10 -10 -10 -9 -8 -7 ------- Run | Scr Mat Min Exi Min Mat Fac Slots Evolved 6 | . . . . . 4 2 Power . | . . . . . . . Propulsion 2 | . . . . . 2 . Utility 2 | . . . . . 1 1 Weapon 2 | . . . . . 1 1 Parts Attached 48 | 5 9 . 2 2 15 15 Power 5 | 1 1 . . 1 1 1 Engine 5 | 1 1 . . 1 1 1 Core . | . . . . . . . Reactor . | . . . . . . . Propulsion 15 | 2 5 . 1 . 6 1 Treads 1 | . . . . . . 1 Leg 9 | . 5 . 1 . 3 . Wheel 2 | 2 . . . . . . Hover 3 | . . . . . 3 . Flight . | . . . . . . . Utility 10 | . 1 . 1 1 3 4 Device 5 | . 1 . . . 2 2 Storage 2 | . . . 1 . 1 . Processor 1 | . . . . . . 1 Hackware . | . . . . . . . Protection 2 | . . . . 1 . 1 Artifact . | . . . . . . . Weapon 18 | 2 2 . . . 5 9 Energy Gun 4 | . . . . . . 4 Energy Cannon . | . . . . . . . Ballistic Gun 4 | 2 2 . . . . . Ballistic Cannon . | . . . . . . . Launcher 3 | . . . . . 1 2 Special Weapon . | . . . . . . . Impact Weapon 1 | . . . . . . 1 Slashing Weapon 2 | . . . . . 2 . Piercing Weapon 4 | . . . . . 2 2 Special Melee Weapon . | . . . . . . . Unidentified Prototypes . | . . . . . . . Parts Lost 25 | . 3 . . 1 5 16 Power 4 | . 1 . . 1 1 1 Propulsion 9 | . 1 . . . 3 5 Utility 4 | . . . . . 1 3 Weapon 8 | . 1 . . . . 7 Highest Loss Streak 12 | . 2 . . 1 3 12 To Critical Strikes 1 | . . . . . . 1 Average Slot Usage (%) 89 | . 72 85 92 99 90 81 Engine 10 | . 13 14 14 13 7 1 Leg 23 | . 19 28 27 28 15 18 Hover 2 | . . . . . 15 3 Device 9 | . 5 14 14 8 7 7 Storage 8 | . . . 7 14 9 6 Processor 1 | . . . . . . 6 Protection 3 | . . . . 4 9 4 Ballistic Gun 18 | . 25 28 28 28 1 . Slashing Weapon 2 | . . . . . 6 6 Piercing Weapon 4 | . . . . . 16 13 Naked Turns . | . . . . . . . Heaviest Build 38 | 7 12 12 32 38 38 30 Greatest Support 40 | 32 32 26 33 33 40 40 Greatest Overweight (x) 3 | 1 . . 1 1 3 1 Average Overweight (x) . | . . . . . . . Largest Inventory Capacity 15 | 5 5 5 15 15 15 10 Average Capacity 10 | 5 5 5 9 15 10 9 Most Carried 15 | . 5 5 10 15 15 10 Average Carried 8 | . 2 5 6 12 8 9 Final Capacity 15 | 5 5 5 15 15 10 5 Final Carried 15 | . 5 5 10 15 8 3 Class Distribution -------------------- 53% | Mutant 32% | Commander-Mutant 8% | Derelict-Mutant 5% | Scavenger-Mutant Dominant Class ---------------- Mutant | -10/Materials Mutant | -10/Mines Mutant | -10/Exiles Commander-Mutant | -9/Mines Derelict-Mutant | -8/Materials Mutant | -7/Factory Resources | -11 -10 -10 -10 -9 -8 -7 ----------- Run | Scr Mat Min Exi Min Mat Fac Matter Collected 911 | 64 282 . 92 207 184 82 Remotely . | . . . . . . . Salvage Created 919 | . 182 . . 59 255 423 Parts 68 | . 13 . . 9 27 19 Haulers Intercepted 1 | . . . . . 1 . Recyclers Shooed 1 | . . . . . . 1 Parts Field Recycled . | . . . . . . . Retrieved Matter . | . . . . . . . Parts Self-Destructed . | . . . . . . . Prevented . | . . . . . . . Kills | -11 -10 -10 -10 -9 -8 -7 ------- Run | Scr Mat Min Exi Min Mat Fac Combat Hostiles Destroyed 19 | . 7 . . 1 4 7 Melee 4 | . . . . . 1 3 Guns 9 | . 7 . . 1 . 1 AOE 6 | . . . . . 3 3 Classes Destroyed 12 | . 2 . . 2 5 3 Worker 1 | . . . . . . 1 Builder 5 | . . . . 1 3 1 Tunneler 1 | . . . . 1 . . Hauler 1 | . . . . . 1 . Recycler 1 | . . . . . . 1 Operator 1 | . . . . . 1 . Watcher 1 | . . . . . 1 . Swarmer 4 | . 4 . . . . . Grunt 12 | . 3 . . 1 3 5 Sentry 2 | . . . . . 1 1 Hunter 1 | . . . . . 1 . Programmer 1 | . . . . . . 1 Best Kill Streak 7 | . 5 . . 1 7 3 Combat Bots Only 5 | . 5 . . 1 3 3 Max Kills in Single Turn 5 | . 1 . . 1 5 1 Gunslinging . | . . . . . . . Exploded 1 | . . . . . 1 1 Melee 1 | . . . . . 1 1 Uniques/NPCs Destroyed . | . . . . . . . Combat | -11 -10 -10 -10 -9 -8 -7 -------- Run | Scr Mat Min Exi Min Mat Fac Damage Taken 3041 | . 478 . . 157 494 1912 Core 965 | . 149 . . 39 77 700 Absorbed by Shields . | . . . . . . . Core Remaining (%) 70 | 100 . . . 24 86 . Volleys Fired 61 | . 32 . . 10 7 12 Largest 2 | . 2 . . 2 1 2 Hottest 113 | . 46 . . 46 36 113 Shots Fired 101 | . 57 . . 20 7 17 Gun 91 | . 57 . . 20 . 14 Cannon . | . . . . . . . Launcher 10 | . . . . . 7 3 Special . | . . . . . . . Kinetic 77 | . 57 . . 20 . . Thermal 14 | . . . . . . 14 Explosive 10 | . . . . . 7 3 Electromagnetic . | . . . . . . . Robot Hit Streak 11 | . 7 . . 11 3 3 Robot Miss Streak 4 | . 4 . . 4 1 4 Penetration Max . | . . . . . . . Secondary Targets 3 | . 3 . . . . . Max Gunslinging Chain 1 | . 1 . . . . . Shots Hit Robots 103 | . 38 . . 13 16 36 Core Hits 52 | . 13 . . 7 18 14 Critical Kills . | . . . . . . . Critical Parts Destroyed 1 | . . . . 1 . . Critical Strikes 5 | . . . . 1 . 4 Burn 2 | . . . . . . 2 Destroy 1 | . . . . 1 . . Impale 2 | . . . . . . 2 Melee Attacks 59 | . . . . . 18 41 Impact 3 | . . . . . . 3 Slashing 9 | . . . . . 5 4 Piercing 47 | . . . . . 13 34 Sneak Attacks 4 | . . . . . . 4 Combat Hostiles . | . . . . . . . Follow-up Attacks 15 | . . . . . 7 8 Damage Inflicted 3167 | . 348 . . 222 1057 1540 Guns 724 | . 348 . . 222 . 154 Cannons . | . . . . . . . Explosions 963 | . . . . . 644 319 Melee 1480 | . . . . . 413 1067 Ramming . | . . . . . . . Kinetic 570 | . 348 . . 222 . . Thermal 154 | . . . . . . 154 Explosive 963 | . . . . . 644 319 Electromagnetic . | . . . . . . . Impact 151 | . . . . . . 151 Slashing 254 | . . . . . 147 107 Piercing 1075 | . . . . . 266 809 Highest Corruption 1 | . . . . . . 1 Average Corruption 1 | . . . . . . 1 Corruption Purged . | . . . . . . . Corruption Blocked . | . . . . . . . Effects 1 | . . . . . . 1 Matter Fused 1 | . . . . . . 1 Overload Shots . | . . . . . . . Overflow Damage 183 | . . . . . . 183 Projectiles . | . . . . . . . Explosions . | . . . . . . . Melee 183 | . . . . . . 183 Knockbacks . | . . . . . . . Impact . | . . . . . . . Kinetic . | . . . . . . . Secondary . | . . . . . . . Self-Inflicted Damage 42 | . . . . . 42 . Shots 1 | . . . . . 1 . Rammed . | . . . . . . . Targets Rammed . | . . . . . . . Kicked . | . . . . . . . Crushed . | . . . . . . . Highest Temperature 69 | . 22 . . . 29 69 Average Temperature 22 | . 9 . . . 18 40 Received Heat Transfer 735 | . 168 . . 69 144 354 Siege Activations . | . . . . . . . Robots Corrupted . | . . . . . . . Combat Hostiles . | . . . . . . . Parts Fried . | . . . . . . . Impact Corruptions 1 | . . . . . . 1 Robots Melted . | . . . . . . . Combat Hostiles . | . . . . . . . Parts Melted 4 | . . . . . . 4 Heat Transferred 444 | . . . . . . 444 Parts Sabotaged . | . . . . . . . Parts Stolen . | . . . . . . . Parts Stripped . | . . . . . . . Power Chain Reactions . | . . . . . . . Missiles Intercepted . | . . . . . . . Alert | -11 -10 -10 -10 -9 -8 -7 ------- Run | Scr Mat Min Exi Min Mat Fac Peak Influence 391 | . 110 26 . 97 391 287 Initial 177 | . . 26 . . 24 177 Average 116 | . 62 26 . 66 159 201 Maximum Alert Level 1 | . . . . . 1 1 Low Security (%) 81 | 100 100 100 . 100 68 54 Level 1 18 | . . . . . 31 45 Level 2 . | . . . . . . . Level 3 . | . . . . . . . Level 4 . | . . . . . . . Level 5 . | . . . . . . . High Security . | . . . . . . . Max Security . | . . . . . . . Squads Dispatched 4 | . 2 . . . . 2 Investigation 1 | . . . . . . 1 Extermination . | . . . . . . . Reinforcement 3 | . 2 . . . . 1 Assault . | . . . . . . . Garrison . | . . . . . . . Intercept . | . . . . . . . Searches Triggered . | . . . . . . . Construction Impeded . | . . . . . . . Haulers Reinforced . | . . . . . . . Active Scanning Responses . | . . . . . . . Cargo Convoy Interrupts . | . . . . . . . Stealth | -11 -10 -10 -10 -9 -8 -7 --------- Run | Scr Mat Min Exi Min Mat Fac Distress Signals 3 | . 1 . . . 2 . Communications Jammed . | . . . . . . . Distress Signals . | . . . . . . . Times Spotted 46 | . 12 . . 5 12 17 Peak Tracking Total 6 | . 6 . . 3 4 6 Tactical Retreats 1 | . . . . . . 1 Traps | -11 -10 -10 -10 -9 -8 -7 ------- Run | Scr Mat Min Exi Min Mat Fac Traps Triggered 1 | . . . . . . 1 Indirectly . | . . . . . . . Trap Hack Attempts . | . . . . . . . Triggered . | . . . . . . . Disarmed . | . . . . . . . Reprogrammed . | . . . . . . . Reused . | . . . . . . . Traps Extracted . | . . . . . . . Installed . | . . . . . . . Triggered . | . . . . . . . Machines | -11 -10 -10 -10 -9 -8 -7 ---------- Run | Scr Mat Min Exi Min Mat Fac Machines Disabled 2 | . . . . . 2 . Max in Single Turn 1 | . . . . . 1 . Machines Sabotaged . | . . . . . . . Garrisons Compromised . | . . . . . . . Overloaded Fab Kills . | . . . . . . . Hacking | -11 -10 -10 -10 -9 -8 -7 --------- Run | Scr Mat Min Exi Min Mat Fac Machines Accessed 8 | . 2 . 3 . . 3 Terminals 4 | . 2 . . . . 2 Fabricators 1 | . . . . . . 1 Repair Stations . | . . . . . . . Recycling Units . | . . . . . . . Scanalyzers . | . . . . . . . Garrison Access . | . . . . . . . Total Hacks 23 | . 8 . 10 . . 5 Successful 18 | . 7 . 10 . . 1 Failed 5 | . 1 . . . . 4 Catastrophic 2 | . . . . . . 2 Database Lockouts . | . . . . . . . Manual 7 | . 4 . . . . 3 Terminals 11 | . 8 . . . . 3 Fabricators 2 | . . . . . . 2 Repair Stations . | . . . . . . . Recycling Units . | . . . . . . . Scanalyzers . | . . . . . . . Garrison Access . | . . . . . . . Terminal Hacks 17 | . 7 . 10 . . . Record 10 | . . . 10 . . . Robot Analysis 3 | . 3 . . . . . Emergency Access Points 1 | . 1 . . . . . Unreport Threat 2 | . 2 . . . . . Zone Layout 1 | . 1 . . . . . Fabricator Hacks . | . . . . . . . Repair Station Hacks . | . . . . . . . Recycling Unit Hacks . | . . . . . . . Scanalyzer . | . . . . . . . Garrison Access Hacks . | . . . . . . . Unauthorized Hacks 1 | . . . . . . 1 Terminals 1 | . . . . . . 1 Botnet 1 | . . . . . . 1 Fabricators . | . . . . . . . Repair Stations . | . . . . . . . Recycling Units . | . . . . . . . Scanalyzers . | . . . . . . . Garrison Access . | . . . . . . . Data Cores Recovered . | . . . . . . . Used . | . . . . . . . Hacking Detections 5 | . 2 . . . . 3 Full Trace Events 2 | . 1 . . . . 1 Feedback Events . | . . . . . . . Feedback Blocked . | . . . . . . . Robot Schematics Acquired . | . . . . . . . Robots Built . | . . . . . . . Authchips . | . . . . . . . Time . | . . . . . . . Total Robot Build Rating . | . . . . . . . Part Schematics Acquired . | . . . . . . . Parts Built . | . . . . . . . Authchips . | . . . . . . . Time . | . . . . . . . Total Part Build Rating . | . . . . . . . Parts Repaired . | . . . . . . . Time . | . . . . . . . Parts Recycled . | . . . . . . . Recycled Matter . | . . . . . . . Retrieved Matter . | . . . . . . . Retrieved Components . | . . . . . . . Parts Scanalyzed . | . . . . . . . Part Schematics Acquired . | . . . . . . . Parts Damaged . | . . . . . . . Bothacking | -11 -10 -10 -10 -9 -8 -7 ------------ Run | Scr Mat Min Exi Min Mat Fac Used RIF Installer . | . . . . . . . Robots Hacked . | . . . . . . . Non-combat . | . . . . . . . Combat . | . . . . . . . Robot Hacks Applied . | . . . . . . . Relay Couplers Released . | . . . . . . . Fabnet Peak Effective % . | . . . . . . . Robots Rewired 4 | . . . 4 . . . Allies Hacked . | . . . . . . . Hacks Repelled . | . . . . . . . Allies | -11 -10 -10 -10 -9 -8 -7 -------- Run | Scr Mat Min Exi Min Mat Fac Total Allies 4 | . . . 4 . . . Largest Group 4 | . . . 4 4 4 . Highest-Rated Group 58 | . . . 58 58 58 . Highest-Rated Ally 21 | . . . 21 21 21 . Total Orders . | . . . . . . . Ally Attacks 56 | . . . . 8 48 . Total Damage 764 | . . . . 164 600 . Kills 14 | . . . . 4 10 . Allies Corrupted . | . . . . . . . Allies Melted . | . . . . . . . Intel | -11 -10 -10 -10 -9 -8 -7 ------- Run | Scr Mat Min Exi Min Mat Fac Robot Analysis Total 3 | . 3 . . . . . Derelict Logs Recovered 1 | . . . . 1 . . Drone Launches . | . . . . . . . Drone Recoveries . | . . . . . . . Exploration | -11 -10 -10 -10 -9 -8 -7 ------------- Run | Scr Mat Min Exi Min Mat Fac Turns Passed 2636 | 34 271 70 656 719 330 556 Spaces Moved 1627 | 29 148 59 440 452 156 343 Core 18 | 4 . . . . . 14 Treads . | . . . . . . . Legs 1552 | . 125 59 440 452 147 329 Wheels 48 | 25 23 . . . . . Hover 9 | . . . . . 9 . Flight . | . . . . . . . Fastest Speed 50 | 50 100 120 120 130 120 50 Average Speed 134 | 94 116 120 132 149 164 118 Slowest Speed 330 | 100 120 120 190 200 330 190 Overloaded Moves . | . . . . . . . Propulsion Burnouts . | . . . . . . . Robots Hopped . | . . . . . . . Cave-ins Triggered . | . . . . . . . Exploration Rate (%) 40 | 3 34 21 90 93 24 17 Regions Visited 6 Branch Regions 3 Pre-discovered Areas 1 | . . . . 1 . . Known Exits Taken . | . . . . . . . Unknown Exits Taken 6 | 1 1 1 1 1 1 . Scrap Searched 2 | . . . . 2 . . Spaces Dug 2 | . . . . . . 2 Terrain Destroyed 44 | . . . . . 42 2 Melee 2 | . . . . . . 2 Projectile . | . . . . . . . AOE 42 | . . . . . 42 . Terrain Rammed . | . . . . . . . Walls Destroyed . | . . . . . . . Machines Disabled . | . . . . . . . Actions | -11 -10 -10 -10 -9 -8 -7 --------- Run | Scr Mat Min Exi Min Mat Fac Total 1935 | 33 197 58 512 476 212 447 Wait 57 | . 1 . . 8 7 41 Move 1621 | 28 147 58 439 451 155 343 Hop . | . . . . . . . Pick Up 23 | . 4 . 7 4 6 2 Fast Attach 29 | 5 7 . 1 2 7 7 Attach 8 | . . . 1 . 3 4 Detach 3 | . . . . 1 . 2 Swap 11 | . 2 . . . 5 4 Drop 21 | . 4 . 2 . 12 3 Fire 61 | . 32 . . 10 7 12 Melee 39 | . . . . . 10 29 Ram . | . . . . . . . Kick . | . . . . . . . Crush . | . . . . . . . Escape Stasis . | . . . . . . . Rewire 62 | . . . 62 . . . Trap . | . . . . . . . Miscellaneous . | . . . . . . . Route ------- -11/Scrapyard -10/Materials (discovered 2 exits: [*Mat] / [*Min]) -10/Mines -10/Exiles -9/Mines (discovered 2 exits: [*Mat x2]) -8/Materials -7/Factory History --------- Turn | Location | Event 13 | -11/Scrapyard | Discovered new exit (range 15) 35 | -11/Scrapyard | Entered Materials 220 | -10/Materials | Discovered new exit (range 14) 275 | -10/Materials | Discovered new exit (range 15) 285 | -10/Materials | Core integrity fell below 50% 306 | -10/Materials | Entered Mines 311 | -10/Mines | Build established: Mutant 371 | -10/Mines | Deemed a non-threat by the Exiles lab entrance 371 | -10/Mines | Discovered new exit (range 5) 376 | -10/Mines | Entered Exiles 376 | -10/Exiles | Found Exiles lab destroyed 1013 | -10/Exiles | Discovered new exit (range 14) 1032 | -10/Exiles | Entered Mines 1032 | -9/Mines | Accompanied by 4 allies 1060 | -9/Mines | Learned location of Zion (-7) 1155 | -9/Mines | Assembled infested the area 1160 | -9/Mines | Assisted by a Guerilla fighting off Assembled 1233 | -9/Mines | Build established: Commander-Mutant 1241 | -9/Mines | Discovered new exit (range 12) 1244 | -9/Mines | Received a Rocket Launcher from a helpful Derelict 1485 | -9/Mines | Joined a pair of Derelicts in attacking an 0b10 outpost 1661 | -9/Mines | Discovered new exit (range 10) 1751 | -9/Mines | Entered Materials 1751 | -8/Materials | Accompanied by 4 allies 1751 | -8/Materials | Evolved 4 slots: Propulsion x2, Utility x1, Weapon x1 2049 | -8/Materials | Lost 3 parts (1p2n) 2063 | -8/Materials | Discovered new exit (range 16) 2081 | -8/Materials | Entered Factory 2081 | -7/Factory | Evolved 2 slots: Utility x1, Weapon x1 2278 | -7/Factory | Build established: Mutant 2441 | -7/Factory | Lost 3 parts (2n1u) 2612 | -7/Factory | Core integrity fell below 50% 2630 | -7/Factory | Core integrity fell below 20% 2637 | -7/Factory | Destroyed by Y-54 Guardian with Flak Gun Last Messages --------------- 02621_ Structural Scanner destroyed. 02621_ R-06 Scavenger collects Shock Rifle. 02622_ Critical hit (Destroy). 02622_ Mak. Laser destroyed. 02627_ R-06 Scavenger collects Imp. Terrain Scanner. 02627_ K-01 Serf collects debris. 02628_ R-06 Scavenger collects Mak. Axe. 02630_ R-06 Scavenger collects Lgt. Nuclear Core. 02631_ Mak. Spear destroyed. 02631_ R-06 Scavenger collects Salvage Targeting Computer. 02631_ R-06 Scavenger collects VTOL Module. 02632_ System corrupted: Matter fused (-6). 02632_ Mak. Spear destroyed. 02633_ R-06 Scavenger collects Weight Redist. System. 02634_ M-28 Smith repairs U-05 Engineer. 02634_ R-06 Scavenger collects VTOL Module. 02634_ K-01 Serf collects debris. 02634_ R-06 Scavenger collects VTOL Module. 02637_ U-05 Engineer destroyed. 02637_ K-01 Serf destroyed. Map ----- +----------------------------------------------------+ | ????????????????????????## ???????????## "" | | ????????????????????????## ???????????## "" | | ????????????????????????## ##?????????## "" | | ??????????????????######## ############# | | ??????????????????######## ###################+ | | ??????????????????## | | ??????????????????## | | ??????????????????## """ | | ??????????????????## | """ | | ??????????????????## """ | | ?????????????????### | | ?????????????????### % """ | | ?????????????????## % """ ###### | | ?????????????????##T """ ###### | | ?????????????????### ##???? | | ??????????????????## """ ##???? | | ??????????????????## """ ##???? | | ??????????????????## """ ##???? | | ??????????????????## u ##???? | | ??????????????????## != m """ ?????? | | ??????????????????## r! *%! """ ?????? | | ???????????####???## r ! ""????????? | | ??????????? ## rYr u ???????? | | ??????????/ rss u """???????? | | ?????????? ""????????? | | ?????????? @ ""????????? | | ?????????? t % ???????? | | ?????????? = ""????????? | | ??????????? "?????????? | | ?????????? % "?????????? | | ????????? ##### ?????????? | | ??????????# ####### "?????????? | | ??????????# ###??## ##### ??????????? | | ???????????? ??????## ##### ??????????? | | ?????????????????????## ##??? ???????????? | | ??????????????????????# ##??? ???????????? | | ??????????????????????# ??????###### ????????????? | | ??????????????????????#??????????????????????????? | | ?????????????????????????????????????????????????? | | ?????????????????????????????????????????????????? | | ?????????????????????????????????????????????????? | | ?????????????????????????????????????????????????? | | ?????????????????????????????????????????????????? | | ?????????????????????????????????????????????????? | | ?????????????????????????????????????????????????? | | ?????????????????????????????????????????????????? | | ?????????????????????????????????????????????????? | | ?????????????????????????????????????????????????? | | ?????????????????????????????????????????????????? | | ?????????????????????????????????????????????????? | +----------------------------------------------------+ Best States ------------- Heat Dissipation 34 Coolant Potential 50 Energy Generation 14 Energy Capacity 250 Matter Stores 300 Matter Capacity 300 Sight Range 16 Terrain Scan Density 10 Cloak Strength 3 Armor Coverage 225 Melee Speed Boost 20 Evasion (%) 59 Melee Accuracy 6 Item Schematics ----------------- None Robot Schematics ------------------ None Fabricated ------------ Nothing Alien Tech Used ----------------- None Achievements -------------- None Challenges ------------ None Game ------ Seed HoverBackupChronowheel Manual? 0 Play Time 00:30:27 Cumulative 328.7 hours Start 2022.08.16 @ 15:15:55 End 2022.08.16 @ 16:34:30 Sessions 1 Manual Loads 0 Difficulty Rogue Special Mode None Game No. 158 Rogue 154 Adventurer 0 Explorer 4 Win Type - Total 18 Types 4/1/2/4/1/2/3/0/1 Lore% 81 Gallery% 85 Achievement% 77 Wizard Run 0 Options --------- ASCII 0 Keyboard 0 Movement Mouse Keybinds 0 Fullscreen 1 Font 18/SmallcapsGlow Map View 76x50 Tactical HUD 1 Map Filters NONE Filters NONE Steam 1 RUN: aabcbebf-b784-4a1a-9e51-0a31c1625d18